fUST/lending_fUST_20241223
["ID","MTS","AMOUNT","RATE_DAILY","PERIOD"]
[346336812,1734898266648,-500.0,0.00014246,2]
[346336813,1734898266657,-987.24,0.0001452,2]
[346336814,1734898266667,-559.15,0.0001452,2]
[346336815,1734898266676,-987.24,0.00014794,2]
[346336816,1734898266686,-987.24,0.00015068,2]
[346336817,1734898266695,-987.24,0.00015342,2]
[346336818,1734898266706,-480.37956252,0.00016164,2]
[346336819,1734898266716,-991.80790143,0.00016438,2]
[346336820,1734898266725,-50269.66,0.00016438,2]
[346336821,1734898266735,-500.0,0.00016438,2]
[346336822,1734898266744,-2571.7,0.00016438,2]
[346336823,1734898266753,-500.0,0.00016438,2]
[346336824,1734898266762,-500.0,0.00016438,2]
[346336825,1734898266772,-500.0,0.00016438,2]
[346336826,1734898266781,-500.0,0.00016438,2]
[346336827,1734898266790,-540.65,0.00016438,2]
[346336828,1734898266800,-1127.35,0.00016438,2]
[346336829,1734898266810,-500.0,0.00016438,2]
[346336830,1734898266820,-234.0281798,0.00016438,2]
[346336831,1734898266842,-987.24,0.00015616,2]
[346336832,1734898266852,-987.24,0.0001589,2]
[346336833,1734898266862,-265.9718202,0.00016438,2]
[346336834,1734898266871,-821.27,0.00016438,2]
[346336835,1734898266882,-630.05,0.00016438,2]
[346336836,1734898266891,-975.47,0.00016438,2]
[346336837,1734898266901,-1895.21,0.00016438,2]
[346336838,1734898266911,-940.44,0.00016438,2]
[346336839,1734898266920,-1313.77,0.00016438,2]
[346336840,1734898266930,-664.22,0.00016438,2]
[346336841,1734898266940,-500.0,0.00016438,2]
[346336842,1734898266949,-1144.59,0.00016438,2]
[346336843,1734898266959,-2213.08,0.00016438,2]
[346336844,1734898266970,-2792.40817981,0.00016438,2]
[346336850,1734899042912,10000.0,0.00022,120]
[346336851,1734899119107,2853.993514,0.0002205,120]
[346336852,1734899119388,2734.74,0.0002205,120]
[346336853,1734899119737,2620.866,0.0002205,120]
[346336854,1734899120388,2510.15636,0.0002205,120]
[346336855,1734899120931,2406.0,0.0002205,120]
[346336856,1734899121187,2407.0,0.0002205,120]
[346336857,1734899121467,2205.5683,0.0002205,120]
[346336858,1734899121849,2113.37,0.0002205,120]
[346336859,1734899122380,2025.4872,0.0002205,120]
[346336860,1734899122723,1941.880611,0.0002205,120]
[346336861,1734899123032,1860.54,0.0002205,120]
[346336862,1734899123320,1783.0379,0.0002205,120]
[346336863,1734899123609,1708.0,0.0002205,120]
[346336864,1734899123935,1637.451008,0.0002205,120]
[346336865,1734899124280,1569.68629,0.0002205,120]
[346336866,1734899124567,1504.0,0.0002205,120]
[346336867,1734899125080,1441.94,0.0002205,120]
[346336868,1734899125385,1382.0,0.0002205,120]
[346336869,1734899125680,1323.2,0.0002205,120]
[346336870,1734899125983,1268.2291,0.0002205,120]
[346336871,1734899126399,552.853717,0.0002205,120]
[346336876,1734899239139,-352.3752084,0.0001252,2]
[346336877,1734899239162,-132.05680906,0.00012646,2]
[346336878,1734899309577,49994.23287547,0.00022,120]
[346336879,1734899358088,-220.31839934,0.0001252,2]
[346336880,1734899358110,-220.31839934,0.00012646,2]
[346336881,1734899358130,-316.90320132,0.00012722,2]
[346336882,1734899368093,-171.86088168,0.00012722,2]
[346336883,1734899368596,171.86088168,0.00012595,2]
[346336911,1734899433250,-380.7,0.00013384,2]
[346336917,1734899433309,-219.3,0.00013384,2]
[346336919,1734899433320,-300.0,0.00013519,2]
[346336921,1734899433330,-300.0,0.00013519,2]
[346336924,1734899433340,-500.0,0.0001352,2]
[346336925,1734899433350,-6.38499998,0.0001352,2]
[346336928,1734899433367,-493.61500002,0.0001352,2]
[346336930,1734899433378,-500.0,0.0001352,2]
[346336932,1734899433388,-500.0,0.0001352,2]
[346336934,1734899433398,-500.0,0.0001352,2]
[346336936,1734899433407,-500.0,0.0001352,2]
[346336938,1734899433416,-108.48759416,0.0001352,2]
[346337300,1734899438267,-391.51240584,0.0001352,2]
[346337302,1734899438277,-500.0,0.0001352,2]
[346337304,1734899438286,-500.0,0.0001352,2]
[346337306,1734899438295,-500.0,0.0001352,2]
[346337308,1734899438320,-500.0,0.0001352,2]
[346337310,1734899438329,-500.0,0.0001352,2]
[346337312,1734899438338,-225.36,0.0001352,2]
[346337314,1734899438348,-526.45673974,0.00013592,2]
[346337316,1734899438357,-953.88702507,0.00013592,2]
[346337318,1734899438366,-412.3475,0.00013592,2]
[346337320,1734899438376,-1338.19091565,0.00013598,2]
[346337322,1734899438385,-259.44964009,0.00013598,2]
[346337324,1734899438394,-500.0,0.00013673,2]
[346337326,1734899438403,-500.0,0.00013697,2]
[346337328,1734899438413,-243.3296012,0.00013697,2]
[346337330,1734899438422,-500.0,0.00013697,2]
[346337332,1734899438431,-631.46840481,0.00013697,2]
[346337334,1734899438440,-500.0,0.00013697,2]
[346337336,1734899438450,-500.0,0.00013697,2]
[346337338,1734899438459,-384.46449656,0.00013697,2]
[346337340,1734899438468,-500.0,0.00013697,2]
[346337342,1734899438478,-500.0,0.00013697,2]
[346337344,1734899438487,-500.0,0.00013697,2]
[346337346,1734899438496,-500.0,0.00013697,2]
[346337348,1734899438505,-500.0,0.00013697,2]
[346337350,1734899438515,-500.0,0.00013697,2]
[346337352,1734899438525,-500.0,0.00013697,2]
[346337354,1734899438535,-500.0,0.00013697,2]
[346337356,1734899438545,-500.0,0.00013697,2]
[346337358,1734899438554,-500.0,0.00013697,2]
[346337360,1734899438564,-500.0,0.00013697,2]
[346337362,1734899438573,-500.0,0.00013697,2]
[346337364,1734899438583,-500.0,0.00013697,2]
[346337366,1734899438593,-500.0,0.00013697,2]
[346337368,1734899438603,-500.0,0.00013697,2]
[346337370,1734899438612,-500.0,0.00013697,2]
[346337372,1734899438622,-500.0,0.00013697,2]
[346337374,1734899438631,-259.22036735,0.00013697,2]
[346337376,1734899438641,-500.0,0.00013697,2]
[346337378,1734899438651,-500.0,0.00013697,2]
[346337380,1734899438661,-500.0,0.00013697,2]
[346337382,1734899438670,-500.0,0.00013697,2]
[346337384,1734899438679,-500.0,0.00013697,2]
[346337386,1734899438688,-500.0,0.00013697,2]
[346337388,1734899438697,-500.0,0.00013697,2]
[346337390,1734899438706,-500.0,0.00013697,2]
[346337392,1734899438714,-500.0,0.00013697,2]
[346337394,1734899438724,-500.0,0.00013697,2]
[346337395,1734899438733,-500.0,0.00013697,2]
[346337397,1734899438742,-500.0,0.00013697,2]
[346337399,1734899438751,-500.0,0.00013697,2]
[346337401,1734899438761,-500.0,0.00013697,2]
[346337403,1734899438771,-330.22275453,0.00013698,2]
[346337405,1734899438780,-500.0,0.00013698,2]
[346337407,1734899438789,-220.54776626,0.00013698,2]
[346337409,1734899438799,-661.7,0.00013698,2]
[346337411,1734899438815,-500.0,0.00013698,2]
[346337413,1734899438825,-238.03530403,0.00013698,2]
[346337415,1734899438835,-1000.0,0.00013698,2]
[346337417,1734899438846,-500.0,0.00013698,2]
[346337420,1734899438855,-316.92235077,0.00013698,2]
[346337422,1734899438869,-183.07764923,0.00013698,2]
[346337424,1734899438879,-500.0,0.00013698,2]
[346337426,1734899438888,-470.79886667,0.00013698,2]
[346337428,1734899438900,-29.20113333,0.00013698,2]
[346337430,1734899438910,-500.0,0.00013698,2]
[346337432,1734899438919,-500.0,0.00013698,2]
[346337434,1734899438929,-443.80601044,0.00013698,2]
[346337436,1734899438938,-500.0,0.00013698,2]
[346337438,1734899438947,-183.29744434,0.00013698,2]
[346337440,1734899438957,-500.0,0.00013698,2]
[346337442,1734899438966,-500.0,0.00013698,2]
[346337444,1734899438976,-500.0,0.00013698,2]
[346337446,1734899438987,-500.0,0.00013698,2]
[346337448,1734899438996,-500.0,0.00013698,2]
[346337450,1734899439006,-500.0,0.00013698,2]
[346337452,1734899439016,-500.0,0.00013698,2]
[346337454,1734899439026,-500.0,0.00013698,2]
[346337456,1734899439037,-500.0,0.00013698,2]
[346337458,1734899439046,-530.95,0.00013698,2]
[346337460,1734899439063,-238.61619151,0.00013698,2]
[346337462,1734899439072,-500.0,0.00013698,2]
[346337464,1734899439083,-500.0,0.00013698,2]
[346337466,1734899439092,-500.0,0.00013698,2]
[346337468,1734899439102,-500.0,0.00013698,2]
[346337470,1734899439111,-500.0,0.00013698,2]
[346337472,1734899439120,-352.20736483,0.00013698,2]
[346337489,1734899439266,-147.79263517,0.00013698,2]
[346337491,1734899439276,-500.0,0.00013698,2]
[346337493,1734899439285,-382.20736483,0.00013698,2]
[346337495,1734899439297,-117.79263517,0.00013698,2]
[346337497,1734899439313,-500.0,0.00013698,2]
[346337499,1734899439322,-500.0,0.00013698,2]
[346337501,1734899439331,-500.0,0.00013698,2]
[346337503,1734899439341,-500.0,0.00013698,2]
[346337505,1734899439352,-500.0,0.00013698,2]
[346337508,1734899439362,-342.26586419,0.00013698,2]
[346337509,1734899439371,-500.0,0.00013698,2]
[346337512,1734899439381,-239.94150064,0.00013698,2]
[346337514,1734899439393,-64.19044024,0.00013698,2]
[346337516,1734899439402,-500.0,0.00013698,2]
[346337518,1734899439410,-500.0,0.00013698,2]
[346337519,1734899439421,-500.0,0.00013698,2]
[346337521,1734899439430,-500.0,0.00013698,2]
[346337523,1734899439440,-500.0,0.00013698,2]
[346337524,1734899439450,-501.38730945,0.00013698,2]
[346337526,1734899439460,-500.0,0.00013698,2]
[346337528,1734899439469,-500.0,0.00013698,2]
[346337530,1734899439479,-500.0,0.00013698,2]
[346337532,1734899439488,-500.0,0.00013698,2]
[346337534,1734899439499,-272.52282706,0.00013698,2]
[346337536,1734899439508,-500.0,0.00013698,2]
[346337538,1734899439517,-500.0,0.00013698,2]
[346337540,1734899439526,-500.0,0.00013698,2]
[346337542,1734899439543,-500.0,0.00013698,2]
[346337544,1734899439553,-500.0,0.00013698,2]
[346337546,1734899439566,-500.0,0.00013698,2]
[346337548,1734899439575,-500.0,0.00013698,2]
[346337550,1734899439585,-500.0,0.00013698,2]
[346337552,1734899439594,-500.0,0.00013698,2]
[346337554,1734899439604,-633.59,0.00013698,2]
[346337556,1734899439613,-500.0,0.00013698,2]
[346337558,1734899439624,-500.0,0.00013698,2]
[346337560,1734899439633,-500.0,0.00013698,2]
[346337562,1734899439643,-500.0,0.00013698,2]
[346337564,1734899439652,-203.7334564,0.00013698,2]
[346337566,1734899439662,-500.0,0.00013698,2]
[346337568,1734899439671,-500.0,0.00013698,2]
[346337570,1734899439680,-500.0,0.00013698,2]
[346337572,1734899439689,-500.0,0.00013698,2]
[346337574,1734899439699,-500.0,0.00013698,2]
[346337576,1734899439708,-500.0,0.00013698,2]
[346337577,1734899439718,-500.0,0.00013698,2]
[346337579,1734899439728,-500.0,0.00013698,2]
[346337582,1734899439739,-582.95,0.00013698,2]
[346337585,1734899439748,-500.0,0.00013698,2]
[346337587,1734899439758,-500.0,0.00013698,2]
[346337589,1734899439768,-500.0,0.00013698,2]
[346337591,1734899439778,-500.0,0.00013698,2]
[346337592,1734899439788,-500.0,0.00013698,2]
[346337594,1734899439797,-461.31321498,0.00013698,2]
[346337595,1734899439811,-500.0,0.00013698,2]
[346337596,1734899439821,-500.0,0.00013698,2]
[346337597,1734899439831,-500.0,0.00013698,2]
[346337598,1734899439840,-500.0,0.00013698,2]
[346337599,1734899439849,-500.0,0.00013698,2]
[346337600,1734899439858,-500.0,0.00013698,2]
[346337602,1734899439867,-500.0,0.00013698,2]
[346337604,1734899439876,-988.04,0.00013698,2]
[346337606,1734899439885,-500.0,0.00013698,2]
[346337608,1734899439895,-500.0,0.00013698,2]
[346337610,1734899439904,-500.0,0.00013698,2]
[346337632,1734899440093,-996.84,0.00013698,2]
[346337634,1734899440104,-500.0,0.00013698,2]
[346337636,1734899440114,-182.15882522,0.00013698,2]
[346337638,1734899440123,-500.0,0.00013698,2]
[346337640,1734899440132,-500.0,0.00013698,2]
[346337642,1734899440142,-500.0,0.00013698,2]
[346337644,1734899440151,-500.0,0.00013698,2]
[346337646,1734899440160,-500.0,0.00013698,2]
[346337648,1734899440169,-500.0,0.00013698,2]
[346337650,1734899440178,-435.60993286,0.00013698,2]
[346337652,1734899440187,-500.0,0.00013698,2]
[346337654,1734899440197,-500.0,0.00013698,2]
[346337656,1734899440207,-500.0,0.00013698,2]
[346337658,1734899440216,-303.90110698,0.00013698,2]
[346337660,1734899440226,-500.0,0.00013698,2]
[346337662,1734899440235,-500.0,0.00013698,2]
[346337664,1734899440244,-500.0,0.00013698,2]
[346337666,1734899440253,-791.35,0.00013698,2]
[346337668,1734899440263,-500.0,0.00013698,2]
[346337670,1734899440272,-500.0,0.00013698,2]
[346337672,1734899440281,-500.0,0.00013698,2]
[346337674,1734899440291,-500.0,0.00013698,2]
[346337676,1734899440303,-500.0,0.00013698,2]
[346337678,1734899440312,-500.0,0.00013698,2]
[346337680,1734899440321,-500.0,0.00013698,2]
[346337682,1734899440331,-500.0,0.00013698,2]
[346337684,1734899440340,-1032.67,0.00013698,2]
[346337686,1734899440349,-500.0,0.00013698,2]
[346337688,1734899440359,-500.0,0.00013698,2]
[346337690,1734899440368,-500.0,0.00013698,2]
[346337692,1734899440377,-625.52,0.00013698,2]
[346337694,1734899440386,-500.0,0.00013698,2]
[346337696,1734899440395,-500.0,0.00013698,2]
[346337698,1734899440405,-500.0,0.00013698,2]
[346337700,1734899440414,-622.29,0.00013698,2]
[346337702,1734899440423,-376.89958571,0.00013698,2]
[346337704,1734899440433,-500.0,0.00013698,2]
[346337706,1734899440443,-500.0,0.00013698,2]
[346337708,1734899440452,-500.0,0.00013698,2]
[346337710,1734899440462,-500.0,0.00013698,2]
[346337712,1734899440471,-500.0,0.00013698,2]
[346337714,1734899440481,-500.0,0.00013698,2]
[346337716,1734899440490,-500.0,0.00013698,2]
[346337718,1734899440499,-500.0,0.00013698,2]
[346337720,1734899440508,-217.9649832,0.00013698,2]
[346337722,1734899440518,-752.42,0.00013698,2]
[346337724,1734899440527,-184.55614181,0.00013698,2]
[346337726,1734899440537,-500.0,0.00013698,2]
[346337728,1734899440547,-500.0,0.00013698,2]
[346337730,1734899440557,-500.0,0.00013698,2]
[346337732,1734899440567,-500.0,0.00013698,2]
[346337734,1734899440577,-500.0,0.00013698,2]
[346337736,1734899440586,-500.0,0.00013698,2]
[346337738,1734899440596,-500.0,0.00013698,2]
[346337740,1734899440605,-168.0,0.00013698,2]
[346337742,1734899440615,-500.0,0.00013698,2]
[346337744,1734899440625,-629.53,0.00013698,2]
[346337746,1734899440635,-500.0,0.00013698,2]
[346337748,1734899440644,-500.0,0.00013698,2]
[346337750,1734899440654,-500.0,0.00013698,2]
[346337752,1734899440663,-2032.24,0.00013698,2]
[346337754,1734899440672,-494.65099492,0.00013698,2]
[346337756,1734899440682,-500.0,0.00013698,2]
[346337758,1734899440691,-500.0,0.00013698,2]
[346337760,1734899440700,-500.0,0.00013698,2]
[346337762,1734899440710,-500.0,0.00013698,2]
[346337764,1734899440719,-500.0,0.00013698,2]
[346337766,1734899440728,-500.0,0.00013698,2]
[346337768,1734899440739,-500.0,0.00013698,2]
[346337770,1734899440748,-632.76,0.00013698,2]
[346337772,1734899440757,-500.0,0.00013698,2]
[346337774,1734899440767,-500.0,0.00013698,2]
[346337776,1734899440776,-500.0,0.00013698,2]
[346337778,1734899440786,-955.66,0.00013698,2]
[346337780,1734899440795,-500.0,0.00013698,2]
[346337782,1734899440805,-500.0,0.00013698,2]
[346337784,1734899440815,-500.0,0.00013698,2]
[346337786,1734899440824,-500.0,0.00013698,2]
[346337788,1734899440833,-500.0,0.00013698,2]
[346337790,1734899440842,-601.33,0.00013698,2]
[346337792,1734899440852,-500.0,0.00013698,2]
[346337794,1734899440861,-1256.22,0.00013698,2]
[346337796,1734899440871,-500.0,0.00013698,2]
[346337799,1734899440880,-500.0,0.00013698,2]
[346337801,1734899440890,-664.31,0.00013698,2]
[346337803,1734899440899,-254.26718306,0.00013698,2]
[346337805,1734899440908,-500.0,0.00013698,2]
[346337807,1734899440917,-500.0,0.00013698,2]
[346337809,1734899440926,-500.0,0.00013698,2]
[346337811,1734899440936,-500.0,0.00013698,2]
[346337813,1734899440946,-500.0,0.00013698,2]
[346337815,1734899440955,-500.0,0.00013698,2]
[346337817,1734899440964,-615.02,0.00013698,2]
[346337819,1734899440973,-500.0,0.00013698,2]
[346337821,1734899440985,-1257.34,0.00013698,2]
[346337823,1734899440996,-516.04,0.00013698,2]
[346337825,1734899441005,-500.0,0.00013698,2]
[346337827,1734899441014,-500.0,0.00013698,2]
[346337829,1734899441023,-500.0,0.00013698,2]
[346337831,1734899441033,-500.0,0.00013698,2]
[346337833,1734899441043,-500.0,0.00013698,2]
[346337835,1734899441053,-641.21,0.00013698,2]
[346337837,1734899441063,-500.0,0.00013698,2]
[346337839,1734899441073,-500.0,0.00013698,2]
[346337841,1734899441083,-500.0,0.00013698,2]
[346337843,1734899441092,-500.0,0.00013698,2]
[346337845,1734899441101,-500.0,0.00013698,2]
[346337847,1734899441111,-500.0,0.00013698,2]
[346337849,1734899441120,-500.0,0.00013698,2]
[346337851,1734899441130,-500.0,0.00013698,2]
[346337853,1734899441139,-500.0,0.00013698,2]
[346337854,1734899441149,-500.0,0.00013698,2]
[346337856,1734899441158,-500.0,0.00013698,2]
[346337858,1734899441168,-500.0,0.00013698,2]
[346337860,1734899441177,-500.0,0.00013698,2]
[346337862,1734899441186,-811.1,0.00013698,2]
[346337865,1734899441196,-500.0,0.00013698,2]
[346337866,1734899441205,-500.0,0.00013698,2]
[346337868,1734899441214,-500.0,0.00013698,2]
[346337870,1734899441223,-500.0,0.00013698,2]
[346337872,1734899441232,-505.38821991,0.00013698,2]
[346337874,1734899441242,-500.0,0.00013698,2]
[346337876,1734899441251,-500.0,0.00013698,2]
[346337878,1734899441260,-500.0,0.00013698,2]
[346337880,1734899441269,-500.0,0.00013698,2]
[346337882,1734899441279,-500.0,0.00013698,2]
[346337884,1734899441288,-500.0,0.00013698,2]
[346337886,1734899441297,-500.0,0.00013698,2]
[346337889,1734899441308,-500.0,0.00013698,2]
[346337890,1734899441317,-500.0,0.00013698,2]
[346337892,1734899441327,-500.0,0.00013698,2]
[346337895,1734899441336,-500.0,0.00013698,2]
[346337896,1734899441346,-505.29577705,0.00013698,2]
[346337898,1734899441355,-972.67,0.00013698,2]
[346337900,1734899441364,-500.0,0.00013698,2]
[346337902,1734899441374,-500.0,0.00013698,2]
[346337904,1734899441384,-500.0,0.00013698,2]
[346337906,1734899441393,-871.97,0.00013698,2]
[346337908,1734899441402,-804.52,0.00013698,2]
[346337911,1734899441412,-1069.41,0.00013698,2]
[346337912,1734899441421,-500.0,0.00013698,2]
[346337914,1734899441430,-500.0,0.00013698,2]
[346337916,1734899441440,-500.0,0.00013698,2]
[346337918,1734899441450,-500.0,0.00013698,2]
[346337920,1734899441459,-500.0,0.00013698,2]
[346337922,1734899441469,-500.0,0.00013698,2]
[346337924,1734899441478,-500.0,0.00013698,2]
[346337926,1734899441487,-500.0,0.00013698,2]
[346337928,1734899441496,-500.0,0.00013698,2]
[346337930,1734899441506,-500.0,0.00013698,2]
[346337932,1734899441515,-500.0,0.00013698,2]
[346337934,1734899441524,-500.0,0.00013698,2]
[346337936,1734899441533,-614.06487176,0.00013698,2]
[346337938,1734899441542,-500.0,0.00013698,2]
[346337940,1734899441552,-500.0,0.00013698,2]
[346337942,1734899441562,-500.0,0.00013698,2]
[346337944,1734899441571,-500.0,0.00013698,2]
[346337946,1734899441580,-500.0,0.00013698,2]
[346337948,1734899441590,-500.0,0.00013698,2]
[346337950,1734899441600,-307.6925078,0.00013698,2]
[346337952,1734899441609,-663.57,0.00013698,2]
[346337954,1734899441618,-791.32,0.00013698,2]
[346337956,1734899441627,-607.25051738,0.00013698,2]
[346337958,1734899441636,-500.0,0.00013698,2]
[346337960,1734899441646,-500.0,0.00013698,2]
[346337962,1734899441655,-500.0,0.00013698,2]
[346337964,1734899441665,-500.0,0.00013698,2]
[346337966,1734899441674,-500.0,0.00013698,2]
[346337968,1734899441683,-500.0,0.00013698,2]
[346337970,1734899441692,-500.0,0.00013698,2]
[346337972,1734899441701,-500.0,0.00013698,2]
[346337974,1734899441710,-634.01,0.00013698,2]
[346337976,1734899441719,-500.0,0.00013698,2]
[346337979,1734899441739,-500.0,0.00013698,2]
[346337981,1734899441750,-500.0,0.00013698,2]
[346337983,1734899441760,-500.0,0.00013698,2]
[346337985,1734899441770,-500.0,0.00013698,2]
[346337987,1734899441780,-501.27338248,0.00013698,2]
[346337989,1734899441790,-500.0,0.00013698,2]
[346337991,1734899441800,-672.07,0.00013698,2]
[346337993,1734899441811,-500.0,0.00013698,2]
[346337995,1734899441821,-314.31670961,0.00013698,2]
[346337997,1734899441830,-500.0,0.00013698,2]
[346337999,1734899441840,-500.0,0.00013698,2]
[346338001,1734899441850,-537.68,0.00013698,2]
[346338003,1734899441860,-838.79,0.00013698,2]
[346338005,1734899441869,-3545.82,0.00013698,2]
[346338007,1734899441879,-500.0,0.00013698,2]
[346338009,1734899441889,-500.0,0.00013698,2]
[346338011,1734899441899,-500.0,0.00013698,2]
[346338013,1734899441908,-500.0,0.00013698,2]
[346338015,1734899441918,-500.0,0.00013698,2]
[346338017,1734899441927,-500.0,0.00013698,2]
[346338019,1734899441937,-500.0,0.00013698,2]
[346338021,1734899441946,-500.9205381,0.00013698,2]
[346338023,1734899441956,-500.0,0.00013698,2]
[346338025,1734899441968,-500.0,0.00013698,2]
[346338028,1734899441979,-500.0,0.00013698,2]
[346338029,1734899441990,-500.0,0.00013698,2]
[346338032,1734899442001,-500.0,0.00013698,2]
[346338034,1734899442010,-500.0,0.00013698,2]
[346338036,1734899442019,-500.0,0.00013698,2]
[346338038,1734899442030,-500.0,0.00013698,2]
[346338039,1734899442040,-753.35,0.00013698,2]
[346338042,1734899442049,-537.01,0.00013698,2]
[346338043,1734899442061,-1685.38,0.00013698,2]
[346338045,1734899442070,-531.1,0.00013698,2]
[346338047,1734899442080,-500.0,0.00013698,2]
[346338050,1734899442090,-500.0,0.00013698,2]
[346338052,1734899442100,-500.0,0.00013698,2]
[346338054,1734899442114,-11732.06,0.00013698,2]
[346338056,1734899442123,-500.57200479,0.00013698,2]
[346338058,1734899442132,-500.0,0.00013698,2]
[346338060,1734899442141,-500.0,0.00013698,2]
[346338062,1734899442151,-500.0,0.00013698,2]
[346338064,1734899442161,-500.0,0.00013698,2]
[346338066,1734899442170,-512.75,0.00013698,2]
[346338068,1734899442180,-500.0,0.00013698,2]
[346338070,1734899442189,-500.0,0.00013698,2]
[346338072,1734899442198,-500.0,0.00013698,2]
[346338074,1734899442208,-1845.84,0.00013698,2]
[346338076,1734899442217,-500.0,0.00013698,2]
[346338078,1734899442227,-500.0,0.00013698,2]
[346338080,1734899442236,-500.0,0.00013698,2]
[346338082,1734899442245,-500.0,0.00013698,2]
[346338084,1734899442256,-500.0,0.00013698,2]
[346338086,1734899442268,-500.0,0.00013698,2]
[346338088,1734899442277,-500.0,0.00013698,2]
[346338090,1734899442287,-500.0,0.00013698,2]
[346338092,1734899442297,-500.0,0.00013698,2]
[346338094,1734899442308,-500.0,0.00013698,2]
[346338097,1734899442317,-500.0,0.00013698,2]
[346338098,1734899442326,-500.0,0.00013698,2]
[346338101,1734899442336,-500.0,0.00013698,2]
[346338102,1734899442346,-500.0,0.00013698,2]
[346338104,1734899442355,-500.0,0.00013698,2]
[346338106,1734899442365,-500.0,0.00013698,2]
[346338108,1734899442374,-500.0,0.00013698,2]
[346338110,1734899442384,-500.0,0.00013698,2]
[346338112,1734899442393,-500.0,0.00013698,2]
[346338114,1734899442403,-500.0,0.00013698,2]
[346338116,1734899442413,-500.0,0.00013698,2]
[346338118,1734899442422,-500.0,0.00013698,2]
[346338120,1734899442432,-579.92,0.00013698,2]
[346338122,1734899442442,-500.0,0.00013698,2]
[346338124,1734899442452,-428.79502042,0.00013698,2]
[346338126,1734899442462,-2013.94,0.00013698,2]
[346338128,1734899442471,-500.0,0.00013698,2]
[346338130,1734899442481,-500.0,0.00013698,2]
[346338132,1734899442490,-506.27,0.00013698,2]
[346338135,1734899442500,-27229.4,0.00013698,2]
[346338137,1734899442511,-500.0,0.00013698,2]
[346338139,1734899442520,-500.0,0.00013698,2]
[346338141,1734899442530,-500.0,0.00013698,2]
[346338143,1734899442540,-500.0,0.00013698,2]
[346338145,1734899442550,-1318.98,0.00013698,2]
[346338147,1734899442560,-7122.45,0.00013698,2]
[346338149,1734899442570,-500.0,0.00013698,2]
[346338151,1734899442579,-500.0,0.00013698,2]
[346338153,1734899442589,-500.0,0.00013698,2]
[346338154,1734899442599,-1310.49,0.00013698,2]
[346338156,1734899442609,-9053.51,0.00013698,2]
[346338159,1734899442619,-500.0,0.00013698,2]
[346338160,1734899442629,-500.0,0.00013698,2]
[346338162,1734899442639,-500.0,0.00013698,2]
[346338164,1734899442649,-500.0,0.00013698,2]
[346338167,1734899442659,-500.0,0.00013698,2]
[346338169,1734899442668,-500.0,0.00013698,2]
[346338170,1734899442678,-500.0,0.00013698,2]
[346338172,1734899442706,-500.0,0.00013698,2]
[346338174,1734899442715,-500.0,0.00013698,2]
[346338176,1734899442725,-500.0,0.00013698,2]
[346338179,1734899442735,-500.0,0.00013698,2]